bitfinex/quotes_SOLUSD_20250912
["timestamp","ask_amount","ask_price","bid_price","bid_amount"]
[1757690033638,0.06,238.62,238.58,107.58]
[1757690033952,0.06,238.62,238.59,34.53]
[1757690034330,0.06,238.62,238.59,115.43]
[1757690034954,0.06,238.62,238.6,4.19111483]
[1757690036433,2.10890819,238.68,238.61,34.53]
[1757690036759,2.10890819,238.68,238.63,26.0]
[1757690037138,2.10890819,238.68,238.63,60.53]
[1757690037551,0.76,238.69,238.63,60.53]
[1757690037756,2.10890819,238.68,238.63,59.82]
[1757690038056,0.76,238.69,238.63,64.01058793]
[1757690038253,2.76890819,238.68,238.63,64.01058793]
[1757690039241,0.1,238.69,238.63,64.72058793]
[1757690040052,0.76,238.69,238.63,58.01294986]
[1757690040572,0.66,238.68,238.63,58.72294986]
[1757690040858,2.76890819,238.68,238.63,58.01294986]
[1757690041431,0.66,238.68,238.63,58.01294986]
[1757690041636,0.1,238.69,238.63,138.91294986]
[1757690041855,0.1,238.69,238.63,153.21854387]
[1757690041856,1e-08,238.64,238.63,153.21854387]
[1757690043966,1e-08,238.64,238.63,153.17854387]
[1757690044465,0.1,238.69,238.68,4.18971007]
[1757690044648,0.1,238.69,238.68,85.08971007]
[1757690046054,0.76,238.69,238.68,85.08971007]
[1757690046255,0.1,238.69,238.68,85.08971007]
[1757690047053,0.76,238.69,238.68,85.08971007]
[1757690047567,0.76,238.69,238.68,80.9]
[1757690047775,0.76,238.69,238.68,85.08971007]
[1757690048069,0.76,238.69,238.68,80.9]
[1757690049369,2.10890819,238.67,238.63,80.9]
[1757690049548,2.10890819,238.65,238.61,4.19093918]
[1757690049748,0.66,238.64,238.61,4.19093918]
[1757690050266,2.10890819,238.65,238.61,4.19093918]
[1757690050267,0.66,238.63,238.61,4.19093918]
[1757690053866,0.66,238.62,238.6,85.12108965]
[1757690056580,0.66,238.62,238.6,0.03]
[1757690059185,2.76890819,238.61,238.6,0.03]
[1757690059883,6.78253661,238.61,238.6,0.03]
[1757690060882,10.97347579,238.61,238.6,0.03]
[1757690065060,2.76890819,238.61,238.6,0.03]
[1757690065260,6.78253661,238.61,238.6,0.03]
[1757690066362,10.97347579,238.61,238.6,0.03]
[1757690066883,6.95984737,238.61,238.6,0.03]
[1757690067075,10.97347579,238.61,238.6,0.03]
[1757690070085,44.67347579,238.61,238.6,0.03]
[1757690070878,40.65984737,238.61,238.6,0.03]
[1757690071190,44.67347579,238.61,238.6,0.03]
[1757690072174,39.99984737,238.61,238.6,0.03]
[1757690072475,44.66347579,238.61,238.6,0.03]
[1757690076272,2.77890819,238.61,238.6,0.03]
[1757690076488,2.10890819,238.61,238.6,0.03]
[1757690076789,35.78890819,238.61,238.6,0.03]
[1757690076991,2.10890819,238.61,238.6,0.03]
[1757690077494,35.76890819,238.61,238.6,0.03]
[1757690077694,40.45253661,238.61,238.6,0.03]
[1757690078388,44.64347579,238.61,238.6,0.03]
[1757690082402,44.62347579,238.61,238.6,0.03]
[1757690082701,40.60984737,238.61,238.6,0.03]
[1757690082881,44.62347579,238.61,238.6,0.03]
[1757690085390,40.60984737,238.61,238.6,0.03]
[1757690085593,10.98347579,238.61,238.6,0.03]
[1757690085907,44.62347579,238.61,238.6,0.03]
[1757690086410,40.43253661,238.61,238.6,0.03]
[1757690086586,44.62347579,238.61,238.6,0.03]
[1757690087500,10.98347579,238.61,238.6,0.03]
[1757690087705,40.60984737,238.61,238.6,0.03]
[1757690087887,44.62347579,238.61,238.6,0.03]
[1757690088205,58.2190698,238.61,238.6,0.03]
[1757690088375,56.77573989,238.61,238.6,0.03]
[1757690088879,54.20544138,238.61,238.6,0.03]
[1757690089079,56.77573989,238.61,238.6,0.03]
[1757690091201,42.49014588,238.61,238.6,0.03]
[1757690091596,6.29984737,238.61,238.6,0.03]
[1757690091904,43.17014588,238.61,238.6,0.03]
[1757690092099,56.76573989,238.61,238.6,0.03]
[1757690093500,54.19544138,238.61,238.6,0.03]
[1757690093821,58.44306456,238.61,238.6,0.03]
[1757690094189,58.42306456,238.61,238.6,0.03]
[1757690094586,24.82306456,238.61,238.6,0.03]
[1757690094786,58.42306456,238.61,238.6,0.03]
[1757690095603,55.85276605,238.61,238.6,0.03]
[1757690095803,58.42306456,238.61,238.6,0.03]
[1757690096489,42.47014588,238.61,238.6,0.03]
[1757690097310,2.10890819,238.61,238.6,0.03]
[1757690097514,2.10890819,238.61,238.6,0.71]
[1757690097731,33.6,238.63,238.6,0.71]
[1757690098012,35.70890819,238.63,238.6,0.71]
[1757690098220,2.10890819,238.61,238.6,0.71]
[1757690098620,35.70890819,238.63,238.6,4.90111483]
[1757690098844,2.10890819,238.61,238.6,15.37890192]
[1757690098988,2.10890819,238.61,238.6,14.69890192]
[1757690099612,2.10890819,238.61,238.6,15.37890192]
[1757690101318,0.06,238.64,238.6,15.37890192]
[1757690101319,2.16890819,238.64,238.6,15.37890192]
[1757690101506,2.16890819,238.64,238.61,0.68]
[1757690101716,2.16890819,238.64,238.62,0.68]
[1757690101917,2.16890819,238.64,238.61,26.0]
[1757690102108,2.16890819,238.64,238.62,0.68]
[1757690102425,2.16890819,238.64,238.63,4.19058793]
[1757690102614,2.16890819,238.64,238.63,4.87058793]
[1757690103911,0.06,238.64,238.63,4.87058793]
[1757690105927,2.10890819,238.63,238.62,80.9]
[1757690106614,2.10890819,238.61,238.6,0.03]
[1757690106815,2.10890819,238.61,238.6,10.09]
[1757690107127,2.10890819,238.61,238.6,0.03]
[1757690108213,43.10014588,238.61,238.6,0.03]
[1757690108931,38.2192067,238.61,238.6,0.03]
[1757690109128,2.10890819,238.61,238.6,0.03]
[1757690109537,9.56014588,238.61,238.6,0.03]
[1757690111125,2.79890819,238.61,238.6,0.03]
[1757690111315,2.10890819,238.61,238.6,0.03]
[1757690111630,2.79890819,238.61,238.6,0.03]
[1757690111833,5.3692067,238.61,238.6,0.03]
[1757690112537,9.56014588,238.61,238.6,0.03]
[1757690113728,23.15573989,238.61,238.6,0.03]
[1757690114824,56.67573989,238.61,238.6,0.03]
[1757690115019,40.50984737,238.61,238.6,0.03]
[1757690115229,43.08014588,238.61,238.6,0.03]
[1757690116144,38.8892067,238.61,238.6,0.03]
[1757690116333,43.08014588,238.61,238.6,0.03]
[1757690116533,39.81984737,238.61,238.6,0.03]
[1757690116715,40.50984737,238.61,238.6,0.03]
[1757690117130,36.31890819,238.61,238.6,0.03]
[1757690117642,40.50984737,238.61,238.6,0.03]
[1757690118232,43.08014588,238.61,238.6,0.03]
[1757690120835,38.8892067,238.61,238.6,0.03]
[1757690121244,35.62890819,238.61,238.6,0.03]
[1757690123941,35.60890819,238.61,238.6,0.71]
[1757690124526,2.10890819,238.61,238.6,0.71]
[1757690124729,33.5,238.62,238.6,0.71]
[1757690125049,2.10890819,238.62,238.61,0.68]
[1757690125424,2.10890819,238.62,238.6,0.03]
[1757690125827,34.17,238.61,238.6,0.03]
[1757690126532,37.69093918,238.61,238.6,0.03]
[1757690127332,38.36093918,238.61,238.6,0.03]
[1757690131652,51.95653319,238.61,238.6,0.03]
[1757690131844,54.5268317,238.61,238.6,0.03]
[1757690135550,56.20415637,238.61,238.6,0.03]
[1757690135945,54.5268317,238.61,238.6,0.03]
[1757690136751,56.20415637,238.61,238.6,0.03]
[1757690137261,41.7045022,238.59,238.58,1e-08]
[1757690137565,77.73480071,238.59,238.58,1e-08]
[1757690137734,78.40480071,238.59,238.58,1e-08]
[1757690138547,80.08247713,238.59,238.58,1e-08]
[1757690138766,84.27376762,238.59,238.58,1e-08]
[1757690142654,13.59559401,238.58,238.57,0.03]
[1757690143051,14.26559401,238.58,238.57,0.03]
[1757690143253,54.46735869,238.58,238.57,0.03]
[1757690143452,4.19146617,238.58,238.57,0.03]
[1757690143656,40.20176468,238.58,238.57,0.03]
[1757690143853,6.76176468,238.58,238.57,0.03]
[1757690144052,40.20176468,238.58,238.57,0.03]
[1757690144253,6.76176468,238.58,238.57,0.03]
[1757690145073,40.20176468,238.58,238.57,0.03]
[1757690145666,53.79735869,238.58,238.57,0.03]
[1757690145964,20.35735869,238.58,238.57,0.03]
[1757690146161,54.44735869,238.58,238.57,0.03]
[1757690146557,21.00735869,238.58,238.57,0.03]
[1757690146861,56.12496474,238.58,238.57,0.03]
[1757690147860,22.68496474,238.58,238.57,0.03]
[1757690148164,53.77735869,238.58,238.57,0.03]
[1757690149362,20.35735869,238.58,238.57,0.03]
[1757690149666,53.77735869,238.58,238.57,0.03]
[1757690150367,55.22409056,238.58,238.57,0.03]
[1757690150578,51.20706018,238.58,238.57,0.03]
[1757690150873,55.22409056,238.58,238.57,0.03]
[1757690151062,55.87409056,238.58,238.57,0.03]
[1757690151963,13.59559401,238.55,238.46,84.93354323]
[1757690152154,26.0,238.56,238.46,84.93354323]
[1757690152155,2.10890819,238.47,238.46,4.19354323]
[1757690152355,35.52890819,238.49,238.46,4.19354323]
[1757690152554,2.10890819,238.47,238.46,4.19354323]
[1757690153156,2.10890819,238.47,238.46,14.67748183]
[1757690153961,2.10890819,238.47,238.46,14.96748183]
[1757690154474,2.10890819,238.49,238.46,14.96748183]
[1757690154645,2.10890819,238.49,238.47,0.29]
[1757690155164,2.10890819,238.51,238.47,0.29]
[1757690155671,2.10890819,238.51,238.48,14.67628312]
[1757690155866,2.10890819,238.51,238.49,0.29]
[1757690156394,2.10890819,238.53,238.49,0.29]
[1757690156557,2.10890819,238.53,238.49,81.03]
[1757690156757,2.10890819,238.56,238.49,80.74]
[1757690157170,2.10890819,238.56,238.5,0.29]
[1757690158469,2.10890819,238.56,238.51,14.67443712]
[1757690158669,2.10890819,238.58,238.52,0.29]
[1757690159276,2.16890819,238.58,238.54,26.0]
[1757690159463,2.16890819,238.58,238.55,0.29]
[1757690159661,0.06,238.58,238.55,0.29]
[1757690160066,0.06,238.58,238.56,26.0]
[1757690160276,0.06,238.58,238.57,0.29]
[1757690160475,0.06,238.58,238.57,4.48164186]
[1757690160664,0.06,238.58,238.57,4.19164186]
[1757690161168,0.06,238.58,238.57,4.48164186]
[1757690161483,0.06,238.58,238.57,30.48164186]
[1757690163561,0.06,238.61,238.6,26.0]
[1757690163874,0.06,238.61,238.6,26.29]
[1757690164763,0.06,238.61,238.6,39.88559401]
[1757690164966,0.06,238.63,238.62,4.19076355]
[1757690165274,10.06,238.67,238.62,62.0423428]
[1757690165478,1e-08,238.67,238.63,0.29]
[1757690165695,1e-08,238.67,238.66,13.59559401]
[1757690165989,1e-08,238.67,238.66,0.41900611]
[1757690166284,1e-08,238.67,238.66,34.06900611]
[1757690166494,1e-08,238.67,238.66,37.47704927]
[1757690166988,0.16,238.69,238.68,13.59559401]
[1757690167192,0.16,238.69,238.68,46.95559401]
[1757690167488,0.16,238.69,238.68,47.24559401]
[1757690167888,0.16,238.69,238.68,47.66456501]
[1757690168096,1e-08,238.69,238.68,47.66456501]
[1757690168762,1e-08,238.72,238.71,39.59559401]
[1757690168969,1e-08,238.72,238.71,43.78477753]
[1757690169183,1e-08,238.72,238.71,44.07477753]
[1757690169685,1e-08,238.74,238.72,13.59559401]
[1757690169889,1e-08,238.74,238.73,0.41888325]
[1757690170094,0.66000001,238.74,238.71,16.33728944]
[1757690170272,0.66000001,238.74,238.72,26.0]
[1757690170471,1e-08,238.74,238.73,13.59559401]
[1757690170669,1e-08,238.74,238.73,13.88559401]
[1757690170872,1e-08,238.74,238.73,47.22559401]
[1757690171172,1e-08,238.74,238.73,51.83330983]
[1757690171369,1e-08,238.74,238.73,18.49330983]
[1757690171575,1e-08,238.74,238.73,51.83330983]
[1757690172188,1e-08,238.77,238.76,39.59559401]
[1757690172383,1e-08,238.79,238.78,39.59559401]
[1757690173169,1e-08,238.79,238.78,77.10354945]
[1757690173391,1e-08,238.79,238.78,79.97245764]
[1757690174888,1e-08,238.79,238.78,80.26245764]
[1757690175193,0.1,238.85,238.83,13.59559401]
[1757690175390,0.1,238.85,238.84,33.32]
[1757690175603,0.1,238.85,238.84,0.41869033]
[1757690175904,1e-08,238.85,238.84,47.62428434]
[1757690176187,1e-08,238.85,238.84,14.30428434]
[1757690176499,1e-08,238.85,238.84,15.97859003]
[1757690176678,1e-08,238.85,238.84,53.48549339]
[1757690176883,1e-08,238.86,238.85,13.59559401]
[1757690177089,1e-08,238.86,238.85,47.18559401]
[1757690177382,1e-08,238.86,238.85,127.92559401]
[1757690177969,1e-08,238.86,238.85,13.59559401]
[1757690178168,1e-08,238.86,238.85,46.89559401]
[1757690179000,1e-08,238.86,238.85,51.08232208]
[1757690179197,1e-08,238.86,238.85,51.37232208]
[1757690180193,0.1,238.88,238.87,39.59559401]
[1757690180194,1e-08,238.88,238.87,39.59559401]
[1757690180399,1e-08,238.88,238.87,73.31423176]
[1757690180612,1e-08,238.88,238.87,73.60423176]
[1757690180902,1e-08,238.89,238.88,13.59559401]
[1757690181074,1e-08,238.89,238.88,98.81179628]
[1757690181274,1e-08,238.89,238.88,111.21453209]
[1757690181497,0.06,238.91,238.9,13.59559401]
[1757690181688,0.06,238.92,238.9,46.87559401]
[1757690182108,0.72,238.92,238.91,72.87559401]
[1757690182409,0.06,238.92,238.91,72.87559401]
[1757690182986,0.06,238.92,238.91,77.06127062]
[1757690183289,0.06,238.92,238.91,79.17017881]
[1757690184892,0.06,238.92,238.91,45.89017881]
[1757690185198,0.06,238.92,238.91,79.17017881]
[1757690185609,0.06,238.92,238.91,79.46017881]
[1757690186895,0.06,238.92,238.91,160.2001788]
[1757690187085,0.06,238.92,238.91,126.9201788]
[1757690187285,0.06,238.98,238.97,26.0]
[1757690187593,0.06,238.98,238.97,139.99999999]
[1757690187794,0.06,238.98,238.97,80.73999999]
[1757690187795,0.74,238.98,238.97,80.73999999]
[1757690188087,0.74,238.98,238.95,33.26]
[1757690188088,2.10890819,238.97,238.95,33.26]
[1757690188296,0.68,238.96,238.94,59.26]
[1757690188482,0.68,238.95,238.94,26.0]
[1757690188687,0.68,238.95,238.94,59.26]
[1757690188999,0.68,238.95,238.94,26.0]
[1757690189184,0.68,238.95,238.94,28.10890819]
[1757690189392,0.68,238.95,238.94,32.29405026]
[1757690190804,2.10890819,238.97,238.95,13.59559401]
[1757690191007,0.06,238.98,238.97,13.59559401]
[1757690191678,0.06,238.98,238.97,17.78021969]
[1757690192308,0.06,238.98,238.97,19.98912788]
[1757690196005,0.74,238.98,238.97,53.22912788]
[1757690196500,0.06,238.98,238.97,53.22912788]
[1757690199186,0.06,238.98,238.97,19.98912788]
[1757690199697,0.74,238.98,238.97,6.39353387]
[1757690199881,0.06,238.98,238.97,39.61353387]
[1757690200081,0.74,238.98,238.97,39.61353387]
[1757690200282,0.06,238.98,238.97,53.20912788]
[1757690200803,0.74,238.98,238.97,53.20912788]
[1757690201013,0.06,238.98,238.97,19.98912788]
[1757690201182,0.06,238.98,238.97,53.20912788]
[1757690203910,0.74,238.98,238.97,53.20912788]
[1757690204703,0.74,238.98,238.97,53.18912788]
[1757690205108,0.06,238.98,238.97,53.18912788]
[1757690205404,0.06,239.01,239.0,39.59559401]
[1757690205616,0.06,239.03,239.0,72.79559401]
[1757690206500,0.06,239.03,239.02,13.59559401]
[1757690206713,0.06,239.03,239.02,46.79559401]
[1757690206915,0.06,239.03,239.02,50.97934432]
[1757690207403,0.72,239.03,239.02,50.97934432]
[1757690207810,0.06,239.03,239.02,50.97934432]
[1757690208002,0.72,239.03,239.02,50.97934432]
[1757690208313,0.06,239.03,239.02,50.97934432]
[1757690208606,0.06,239.03,239.02,131.71934431]
[1757690209284,0.06,239.03,239.02,98.51934431]
[1757690209482,0.06,239.03,239.02,131.71934431]
[1757690209684,2.10890819,239.08,239.02,61.7287201]
[1757690209884,0.76,239.09,239.06,13.59559401]
[1757690210105,2.10890819,239.08,239.07,33.2]
[1757690210291,0.66,239.08,239.07,33.2]
[1757690210491,0.1,239.09,239.07,37.3828753]
[1757690210691,0.76,239.09,239.07,37.3828753]
[1757690211005,0.76,239.09,239.08,13.59559401]
[1757690211212,0.1,239.09,239.08,13.59559401]
[1757690211906,0.1,239.09,239.08,16.3645022]
[1757690212087,0.1,239.09,239.08,20.54720255]
[1757690212502,0.1,239.09,239.08,53.72720255]
[1757690212806,0.1,239.09,239.08,54.01720255]
[1757690213007,0.76,239.09,239.08,20.54720255]
[1757690213187,0.76,239.09,239.08,4.18270035]
[1757690213388,0.76,239.09,239.08,37.36270035]
[1757690213797,0.76,239.09,239.08,4.18270035]
[1757690214003,0.76,239.09,239.08,63.36270035]
[1757690214198,0.76,239.09,239.08,30.18270035]
[1757690214402,0.76,239.09,239.08,63.36270035]
[1757690215001,0.76,239.09,239.08,59.18]
[1757690215193,0.76,239.09,239.08,26.0]
[1757690215411,0.76,239.09,239.06,2.10890819]
[1757690215714,2.10890819,239.06,239.05,63.36306743]
[1757690215904,2.77890819,239.06,239.05,30.18306743]
[1757690216317,2.77890819,239.06,239.05,4.18306743]
[1757690220518,2.10890819,239.04,239.02,2.77890819]
[1757690220703,2.10890819,239.02,238.98,63.34445058]
[1757690220904,2.10890819,239.04,238.99,13.88559401]
[1757690221091,2.10890819,239.04,239.01,13.59559401]
[1757690221297,2.10890819,239.04,239.02,33.16]
[1757690221515,0.67,239.03,239.02,33.16]
[1757690221891,0.67,239.03,239.01,13.59559401]
[1757690222599,0.67,239.03,239.02,4.18375031]
[1757690223104,2.10890819,239.04,239.02,4.18375031]
[1757690223299,2.77890819,239.04,239.02,4.18375031]
[1757690223511,2.77890819,239.04,239.02,37.34375031]
[1757690223712,2.10890819,239.04,239.02,37.34375031]
[1757690223939,0.67,239.03,239.02,37.34375031]
[1757690224115,2.10890819,239.04,239.02,37.34375031]
[1757690224611,2.77890819,239.04,239.02,37.34375031]
[1757690225130,0.67,239.03,238.99,4.18427549]
[1757690225299,0.1,239.09,239.01,33.16]
[1757690225300,2.77890819,239.02,239.01,33.16]
[1757690225506,2.77890819,239.02,239.01,113.89999999]
[1757690226600,2.77890819,239.02,239.01,80.73999999]
[1757690227238,2.77890819,239.02,239.01,84.92392534]
[1757690230398,2.77890819,239.02,239.01,84.95392534]
[1757690231324,2.77890819,239.02,239.01,4.21392535]
[1757690233034,2.77890819,239.02,239.01,0.03]
[1757690234835,2.10890819,239.02,239.01,0.03]
[1757690236721,2.77890819,239.02,239.01,0.03]
[1757690237628,2.10890819,239.02,239.01,0.03]
[1757690238032,2.10890819,239.02,239.01,13.62559401]
[1757690238234,2.10890819,239.02,239.01,46.74559401]
[1757690238618,2.10890819,239.02,239.01,50.92951936]
[1757690238818,2.10890819,239.05,239.04,39.59559401]
[1757690239018,0.06,239.06,239.05,13.59559401]
[1757690239224,0.06,239.06,239.05,94.335594]
[1757690239425,0.73,239.06,239.05,80.73999999]
[1757690240218,0.73,239.06,239.05,113.85999999]
[1757690240421,0.73,239.06,239.05,80.73999999]
[1757690240613,0.73,239.06,239.04,4.18340026]
[1757690240810,2.77890819,239.05,239.04,4.18340026]
[1757690242106,2.10890819,239.05,239.04,4.18340026]
[1757690242311,2.77890819,239.05,239.04,4.18340026]
[1757690242816,2.77890819,239.05,239.01,14.67373874]
[1757690243213,2.10890819,239.04,239.01,14.67373874]
[1757690243419,2.10890819,239.04,239.02,33.12]
[1757690243819,2.77890819,239.04,239.02,33.12]
[1757690244335,2.10890819,239.04,239.01,47.79373874]
[1757690244518,2.77890819,239.04,239.01,47.79373874]
[1757690244913,0.06,239.06,239.05,39.59559401]
[1757690245131,0.06,239.06,239.05,72.71559401]
[1757690245642,0.06,239.06,239.05,74.8245022]
[1757690246152,0.06,239.06,239.05,155.56450219]
[1757690246526,0.06,239.06,239.05,74.8245022]
[1757690246709,0.06,239.06,239.05,28.10890819]
[1757690246915,0.06,239.06,239.05,30.18322526]
[1757690248326,0.73,239.06,239.05,30.18322526]
[1757690248812,0.06,239.06,239.05,30.18322526]
[1757690249218,2.83890819,239.06,239.05,4.18322526]
[1757690250221,2.10890819,239.04,239.03,4.18357528]
[1757690250421,2.77890819,239.04,239.03,4.18357528]
[1757690252129,2.77890819,239.04,239.02,4.18375031]
[1757690252946,2.10890819,239.04,239.02,4.18375031]
[1757690253143,2.10890819,239.04,239.03,72.69559401]
[1757690253445,2.16890819,239.06,239.04,13.59559401]
[1757690253752,2.16890819,239.06,239.05,46.69559401]
[1757690254245,0.06,239.06,239.05,133.78772745]
[1757690254427,0.06,239.06,239.05,134.07772745]
[1757690254621,0.06,239.06,239.05,133.78772745]
[1757690255723,0.06,239.06,239.05,100.68772745]
[1757690255922,0.06,239.06,239.05,131.59881926]
[1757690256940,0.06,239.06,239.05,118.00322525]
[1757690258154,0.73,239.06,239.05,4.18322526]
[1757690260456,0.06,239.06,239.05,4.18322526]
[1757690260758,0.73,239.06,239.05,4.18322526]
[1757690260960,2.10890819,239.05,239.04,80.73999999]
[1757690261163,2.77890819,239.05,239.04,84.92340025]
[1757690261755,2.77890819,239.05,239.04,80.73999999]
[1757690262265,2.77890819,239.05,239.04,84.92340025]
[1757690263748,2.77890819,239.05,239.04,80.73999999]
[1757690263942,2.77890819,239.05,239.03,84.92356531]
[1757690264164,0.67,239.04,239.03,84.92356531]
[1757690265957,2.10890819,239.05,239.03,117.98356531]
[1757690266470,0.06,239.06,239.04,39.88559401]
[1757690266663,0.06,239.06,239.05,46.65559401]
[1757690267355,0.06,239.06,239.05,50.83881927]
[1757690270448,0.74,239.06,239.05,37.24322526]
[1757690271046,0.74,239.06,239.05,4.18322526]
[1757690271261,2.10890819,239.05,239.04,80.73999999]
[1757690271456,2.78890819,239.05,239.04,84.9233856]
[1757690272874,2.78890819,239.05,239.04,4.18338561]
[1757690277469,2.78890819,239.05,239.03,80.73999999]
[1757690277779,0.66,239.04,239.03,84.92355563]
[1757690278465,2.10890819,239.05,239.03,84.92355563]
[1757690278763,2.76890819,239.05,239.03,84.92355563]
[1757690279776,0.66,239.04,239.03,84.92355563]
[1757690280077,2.10890819,239.05,239.03,84.92355563]
[1757690280255,2.76890819,239.05,239.03,84.92355563]
[1757690280453,2.10890819,239.05,239.03,80.73999999]
[1757690280768,2.10890819,239.05,239.01,33.07]
[1757690280769,2.10890819,239.02,239.01,80.76999999]
[1757690280962,2.76890819,239.02,239.01,80.76999999]
[1757690281155,2.76890819,239.02,239.01,84.95392534]
[1757690281472,2.10890819,239.02,239.01,84.95392534]
[1757690282272,2.76890819,239.02,239.01,84.95392534]
[1757690282675,2.76890819,239.02,239.01,80.76999999]
[1757690283483,2.76890819,239.02,239.01,0.03]
[1757690294683,6.9526585,239.02,239.0,0.03]
[1757690294868,3.9985054,239.01,239.0,0.03]
[1757690295262,4.6585054,239.01,239.0,0.03]
[1757690295464,8.84243075,239.01,239.0,0.03]
[1757690296986,2.10890819,239.02,239.0,0.03]
[1757690297987,2.10890819,239.02,239.01,0.32]
[1757690298170,2.10890819,239.02,239.0,0.03]
[1757690298574,0.66,239.01,239.0,0.03]
[1757690299582,2.10890819,239.02,239.0,0.03]
[1757690300886,2.76890819,239.02,239.0,0.03]
[1757690301089,2.10890819,239.02,239.0,0.03]
[1757690301577,2.76890819,239.02,239.0,0.03]
[1757690302180,0.66,239.01,239.0,0.03]
[1757690302584,2.10890819,239.02,239.0,0.03]
[1757690302969,2.10890819,239.02,239.0,0.35]
[1757690303178,2.10890819,239.02,239.01,0.32]
[1757690303470,2.10890819,239.02,239.0,0.03]
[1757690304479,0.71,239.01,239.0,0.03]
[1757690305292,4.7085054,239.01,239.0,0.03]
[1757690305990,8.89243075,239.01,239.0,0.03]
[1757690307793,2.16890819,239.02,239.0,0.03]
[1757690310995,0.71,239.01,239.0,0.03]
[1757690312472,2.16890819,239.02,239.0,0.03]
[1757690312672,2.87890819,239.02,239.0,0.03]
[1757690313085,0.71,239.01,239.0,0.03]
[1757690314384,2.16890819,239.02,239.0,0.03]
[1757690314778,2.87890819,239.02,239.0,0.03]
[1757690314977,2.16890819,239.02,239.0,0.03]
[1757690315200,0.71,239.01,239.0,0.03]
[1757690320618,8.89243075,239.01,239.0,0.03]
[1757690322088,34.89243075,239.01,239.0,0.03]
[1757690323989,34.89243075,239.01,238.98,0.03]
[1757690323990,58.94783815,239.01,238.98,0.03]
[1757690324215,3.9985054,238.99,238.98,0.03]
[1757690324618,6.78741359,238.99,238.98,0.03]
[1757690326315,43.91168908,238.99,238.98,0.03]
[1757690326508,10.97168908,238.99,238.98,0.03]
[1757690326819,6.10741359,238.99,238.97,0.03]
[1757690327023,35.72890819,238.99,238.97,0.03]
[1757690327600,0.68,238.98,238.97,0.03]
[1757690329220,4.86445058,238.98,238.97,0.03]
[1757690334039,22.45854999,238.98,238.97,0.03]
[1757690334204,22.45854999,238.98,238.96,0.03]
[1757690334205,2.10890819,238.97,238.96,0.03]
[1757690334405,4.67248814,238.97,238.96,0.03]
[1757690334620,5.39248814,238.97,238.96,0.03]
[1757690335418,9.57711382,238.97,238.96,0.03]
[1757690335720,68.51711382,238.97,238.96,0.03]
[1757690337114,32.29353387,238.97,238.96,0.03]
[1757690337315,2.10890819,238.97,238.96,0.03]
[1757690337702,2.10890819,238.97,238.96,0.35]
[1757690338102,2.10890819,238.97,238.96,0.03]
[1757690338936,2.10890819,238.97,238.96,0.35]
[1757690339425,2.10890819,238.97,238.96,0.03]
[1757690339823,2.10890819,238.97,238.96,0.35]
[1757690340409,2.10890819,238.97,238.96,0.03]
[1757690340610,2.10890819,238.97,238.96,0.35]
[1757690341519,2.10890819,238.97,238.96,4.5348008]
[1757690342613,2.10890819,239.0,238.96,54.59239681]
[1757690342916,2.10890819,238.98,238.97,0.32]
[1757690343648,0.06,238.99,238.98,39.59559401]
[1757690343935,0.06,238.99,238.98,39.91559401]
[1757690345429,0.06,238.99,238.98,44.10004459]
[1757690347835,0.06,238.99,238.98,77.02004459]
[1757690348037,0.06,238.99,238.98,44.10004459]
[1757690348418,0.06,238.99,238.98,77.02004459]
[1757690348942,0.06,238.99,238.98,44.10004459]
[1757690352116,0.06,238.99,238.98,77.00004459]
[1757690352822,0.06,238.99,238.98,77.41848964]
[1757690353034,0.06,238.99,238.98,158.15848963]
[1757690353232,0.06,238.99,238.98,157.74004458]
[1757690354020,0.06,239.04,238.98,192.44319117]